fUSD/lending_fUSD_20240327
["ID","MTS","AMOUNT","RATE_DAILY","PERIOD"]
[320803307,1711561939315,-882.15,0.00058082,120]
[320803308,1711561939325,-500.0,0.00058082,120]
[320803309,1711561939334,-1890.07,0.00058082,120]
[320803310,1711561939344,-1395.77,0.00058082,120]
[320803311,1711561939353,-500.0,0.00058082,120]
[320803312,1711561939363,-22066.4,0.00058082,120]
[320803313,1711561939372,-9133.29,0.00058082,120]
[320803314,1711561939383,-3276.54,0.00058082,120]
[320803315,1711561939393,-3779.21,0.00058082,120]
[320803316,1711561939402,-505.39,0.00058082,120]
[320803317,1711561939412,-1407.53,0.00058082,120]
[320803318,1711561939421,-1780.21,0.00058082,120]
[320803319,1711561939431,-744.71,0.00058082,120]
[320803320,1711561939440,-3375.62,0.00058082,120]
[320803321,1711561939449,-500.0,0.00058082,120]
[320803322,1711561939459,-1245.33,0.00058082,120]
[320803323,1711561939468,-825.22,0.00058082,120]
[320803324,1711561939477,-2499.0,0.00058082,120]
[320803325,1711561939486,-1139.82,0.00058082,120]
[320803326,1711561939495,-3390.46,0.00058082,120]
[320803327,1711561939504,-2297.82,0.00058082,120]
[320803328,1711561939513,-36215.98,0.00058082,120]
[320803329,1711561939523,-2115.9,0.00058082,120]
[320803330,1711561939534,-504.0,0.00058082,120]
[320803331,1711561939543,-500.0,0.00058082,120]
[320803332,1711561939553,-635.43,0.00058082,120]
[320803333,1711561939562,-509.72,0.00058082,7]
[320803334,1711561939573,-1985.21,0.00058082,120]
[320803335,1711561939583,-4093.44,0.00058082,120]
[320803336,1711561939592,-598.33,0.00058082,120]
[320803337,1711561939601,-3703.02,0.00058082,120]
[320803338,1711561939611,-3170.6,0.00058082,120]
[320803339,1711561939620,-4518.78,0.00058082,120]
[320803340,1711561939629,-816.34,0.00058082,120]
[320803341,1711561939639,-550.58,0.00058082,120]
[320803342,1711561939648,-3365.42,0.00058082,120]
[320803343,1711561939657,-5597.96,0.00058082,120]
[320803344,1711561939667,-1850.45,0.00058082,120]
[320803345,1711561939676,-1437.25,0.00058082,120]
[320803346,1711561939685,-543.16,0.00058082,120]
[320803347,1711561939695,-500.0,0.00058082,120]
[320803348,1711561939704,-13261.96,0.00058082,120]
[320803349,1711561939713,-688.55,0.00058082,120]
[320803350,1711561939723,-2460.7,0.00058082,120]
[320803351,1711561939732,-1308.22,0.00058082,120]
[320803352,1711561939742,-1655.41,0.00058082,120]
[320803353,1711561939752,-500.0,0.00058082,120]
[320803354,1711561939762,-606.26,0.00058082,120]
[320803355,1711561939772,-3292.56,0.00058082,120]
[320803356,1711561939781,-2911.12,0.00058082,120]
[320803357,1711561939791,-4771.81,0.00058082,120]
[320803358,1711561939801,-1591.58,0.00058082,120]
[320803359,1711561939811,-8314.67,0.00058082,21]
[320803360,1711561939821,-515.6,0.00058082,120]
[320803361,1711561939830,-1246.89,0.00058082,120]
[320803362,1711561939839,-1689.16,0.00058082,120]
[320803363,1711561939849,-500.0,0.00058082,120]
[320803364,1711561939858,-770.25,0.00058082,120]
[320803365,1711561939869,-8380.88,0.00058082,120]
[320803366,1711561939879,-614.46,0.00058082,120]
[320803367,1711561939895,-2989.36,0.00058082,120]
[320803368,1711561939904,-10959.62,0.00058082,120]
[320803369,1711561939915,-521.47,0.00058082,120]
[320803370,1711561939925,-2645.1,0.00058082,120]
[320803371,1711561939935,-758.38,0.00058082,120]
[320803372,1711561939945,-12744.26,0.00058082,120]
[320803373,1711561939956,-500.0,0.00058082,120]
[320803374,1711561939966,-11517.5,0.00058082,120]
[320803375,1711561939976,-2628.59,0.00058082,120]
[320803376,1711561939985,-1981.45,0.00058082,120]
[320803377,1711561939995,-500.0,0.00058082,120]
[320803378,1711561940006,-500.0,0.00058082,120]
[320803379,1711561940016,-2618.9,0.00058082,120]
[320803380,1711561940026,-2635.65,0.00058082,120]
[320803381,1711561940036,-2440.72,0.00058082,120]
[320803382,1711561940047,-1641.2,0.00058082,120]
[320803383,1711561940057,-1422.66,0.00058082,120]
[320803384,1711561940067,-1953.26,0.00058082,120]
[320803385,1711561940078,-680.59,0.00058082,120]
[320803386,1711561940088,-393.61817548,0.00058082,120]
[320803387,1711561940098,-851.11,0.00058082,120]
[320803388,1711561940108,-516.23,0.00058082,120]
[320803389,1711561940119,-4524.02,0.00058082,120]
[320803390,1711561940129,-833.36,0.00058082,120]
[320803391,1711561940145,-500.0,0.00058082,120]
[320803392,1711561940156,-2147.51,0.00058082,120]
[320803393,1711561940166,-1826.97,0.00058082,120]
[320803394,1711561940177,-1200.4,0.00058082,120]
[320803395,1711561940187,-6977.94,0.00058082,120]
[320803396,1711561940197,-4994.03,0.00058082,120]
[320803397,1711561940207,-1042.58,0.00058082,120]
[320803398,1711561940216,-818.62,0.00058082,120]
[320803399,1711561940227,-1312.03,0.00058082,120]
[320803400,1711561940237,-1814.79,0.00058082,120]
[320803401,1711561940247,-1730.09,0.00058082,120]
[320803402,1711561940257,-395.49571325,0.00058082,120]
[320803403,1711561940267,-3092.64,0.00058082,120]
[320803404,1711561940277,-858.06,0.00058082,120]
[320803405,1711561940287,-500.0,0.00058082,120]
[320803406,1711561940302,-3331.35,0.00058082,120]
[320803407,1711561940314,-1107.56,0.00058082,120]
[320803408,1711561940324,-1629.06,0.00058082,120]
[320803409,1711561940334,-1926.96,0.00058082,120]
[320803410,1711561940344,-5998.21,0.00058082,120]
[320803411,1711561940353,-1276.61,0.00058082,120]
[320803412,1711561940362,-978.47,0.00058082,120]
[320803413,1711561940372,-1204.74,0.00058082,120]
[320803414,1711561940382,-500.0,0.00058082,120]
[320803415,1711561940393,-1112.11,0.00058082,120]
[320803416,1711561940403,-500.0,0.00058082,120]
[320803417,1711561940573,-5147.59,0.00058082,120]
[320803418,1711561940584,-1278.89,0.00058082,120]
[320803419,1711561940593,-1257.45,0.00058082,120]
[320803420,1711561940604,-5642.74,0.00058082,120]
[320803421,1711561940615,-150.0,0.000581,13]
[320803422,1711561940625,-150.50617537,0.00058124,120]
[320803423,1711561940637,-152.91494694,0.00058134,120]
[320803424,1711561940646,-157.032721,0.00058198,115]
[320803425,1711561940656,-152.52,0.000582,9]
[320803426,1711561940667,-152.52,0.000582,9]
[320803427,1711561940677,-152.52,0.000582,9]
[320803428,1711561940688,-152.52,0.000582,9]
[320803429,1711561940698,-152.52,0.000582,9]
[320803430,1711561940708,-152.52,0.000582,9]
[320803431,1711561940719,-152.52,0.000582,9]
[320803432,1711561940729,-152.52,0.000582,9]
[320803433,1711561940739,-152.52,0.000582,9]
[320803434,1711561940749,-152.52,0.000582,9]
[320803435,1711561940760,-2146.54,0.000582,9]
[320803436,1711561940770,-2146.54,0.000582,9]
[320803437,1711561940780,-2146.54,0.000582,9]
[320803438,1711561940790,-2146.54,0.000582,9]
[320803439,1711561940800,-2146.54,0.000582,9]
[320803440,1711561940809,-2146.54,0.000582,9]
[320803441,1711561940820,-2146.54,0.000582,9]
[320803442,1711561940830,-2146.54,0.000582,9]
[320803443,1711561940840,-2146.54,0.000582,9]
[320803444,1711561940850,-2146.54,0.000582,9]
[320803445,1711561940860,-2146.54,0.000582,9]
[320803446,1711561940872,-2146.54,0.000582,9]
[320803447,1711561940882,-2146.54,0.000582,9]
[320803448,1711561940894,-2146.54,0.000582,9]
[320803449,1711561940903,-2146.54,0.000582,9]
[320803450,1711561940914,-2146.54,0.000582,9]
[320803451,1711561940925,-2146.54,0.000582,9]
[320803452,1711561940936,-2146.54,0.000582,9]
[320803453,1711561940947,-2146.54,0.000582,9]
[320803454,1711561940958,-2146.54,0.000582,9]
[320803455,1711561940968,-1002.5,0.000582,2]
[320803456,1711561940979,-500.0,0.0005823,120]
[320803457,1711561940990,-500.0,0.0005823,120]
[320803458,1711561940999,-9591.799595,0.00058235,30]
[320803459,1711561941009,-4795.899798,0.00058235,30]
[320803460,1711561941019,-4795.899797,0.00058235,30]
[320803461,1711561941030,-154.13724489,0.00058246,120]
[320803462,1711561941041,-150.19866873,0.00058256,75]
[320803463,1711561941051,-157.18743014,0.00058271,120]
[320803464,1711561941060,-327.0,0.00058293,30]
[320803465,1711561941070,-415.0,0.00058293,30]
[320803466,1711561941081,-7702.7660341,0.00058316,2]
[320803467,1711561941091,-21060.6868001,0.00058316,2]
[320803468,1711561941101,-62342.634374,0.00058316,2]
[320803469,1711561941112,-150.50617537,0.00058323,120]
[320803470,1711561941122,-152.91494694,0.00058333,120]
[320803471,1711561941131,-1204.3582077,0.00058335,7]
[320803472,1711561941143,-2082.47531551,0.00058335,7]
[320803473,1711561941152,-58658.6708891,0.00058335,7]
[320803474,1711561941162,-154.75091202,0.00058348,120]
[320803475,1711561941172,-1000.0,0.00058355,90]
[320803476,1711561941182,-500.0,0.00058355,90]
[320803477,1711561941192,-522.2,0.00058356,120]
[320803478,1711561941201,-500.0,0.00058356,120]
[320803479,1711561941211,-500.0,0.00058356,120]
[320803480,1711561941221,-500.0,0.00058356,120]
[320803481,1711561941230,-500.0,0.00058356,120]
[320803482,1711561941239,-500.0,0.00058356,120]
[320803483,1711561941249,-500.0,0.00058356,120]
[320803484,1711561941258,-500.0,0.00058356,120]
[320803485,1711561941268,-500.0,0.00058356,120]
[320803486,1711561941277,-500.0,0.00058356,120]
[320803487,1711561941287,-500.0,0.00058356,120]
[320803488,1711561941296,-351.41469084,0.00058356,120]
[320803489,1711561941306,-500.0,0.00058356,120]
[320803490,1711561941316,-631.01,0.00058356,120]
[320803491,1711561941326,-500.0,0.00058356,120]
[320803492,1711561941336,-500.0,0.00058356,120]
[320803493,1711561941347,-530.38,0.00058356,120]
[320803494,1711561941357,-214.93132835,0.00058356,120]
[320803495,1711561941368,-349.56610886,0.00058356,120]
[320803496,1711561941378,-429.86396736,0.00058356,120]
[320803497,1711561941393,-637.04555384,0.00058356,120]
[320803498,1711561941402,-517.87,0.00058356,120]
[320803499,1711561941412,-736.48,0.00058356,120]
[320803500,1711561941424,-500.0,0.00058356,120]
[320803501,1711561941435,-500.0,0.00058356,120]
[320803502,1711561941445,-827.53,0.00058356,120]
[320803503,1711561941455,-500.0,0.00058356,120]
[320803504,1711561941466,-1149.15,0.00058356,120]
[320803505,1711561941475,-683.71,0.00058356,120]
[320803506,1711561941486,-588.63,0.00058356,120]
[320803507,1711561941496,-1653.05,0.00058356,120]
[320803508,1711561941506,-721.85,0.00058356,120]
[320803509,1711561941516,-1272.4,0.00058356,120]
[320803510,1711561941526,-758.1,0.00058356,120]
[320803511,1711561941536,-751.34,0.00058356,120]
[320803512,1711561941546,-500.0,0.00058356,120]
[320803513,1711561941556,-1106.66,0.00058356,120]
[320803514,1711561941566,-667.72,0.00058356,120]
[320803515,1711561941577,-500.0,0.00058356,120]
[320803516,1711561941587,-546.53,0.00058356,120]
[320803517,1711561941597,-525.52,0.00058356,120]
[320803518,1711561941608,-1650.28,0.00058356,120]
[320803519,1711561941619,-500.0,0.00058356,120]
[320803520,1711561941629,-1208.64,0.00058356,120]
[320803521,1711561941643,-1675.07,0.00058356,120]
[320803522,1711561941654,-500.0,0.00058356,60]
[320803523,1711561941664,-875.05,0.00058356,120]
[320803524,1711561941675,-500.0,0.00058356,120]
[320803525,1711561941685,-896.37,0.00058356,120]
[320803526,1711561941696,-526.04,0.00058356,120]
[320803527,1711561941706,-774.53,0.00058356,120]
[320803528,1711561941716,-623.96,0.00058356,120]
[320803529,1711561941727,-1500.57,0.00058356,120]
[320803530,1711561941737,-500.0,0.00058356,120]
[320803531,1711561941746,-1293.46,0.00058356,120]
[320803532,1711561941769,-663.1,0.00058356,120]
[320803533,1711561941786,-190.99,0.00058356,120]
[320803534,1711561941807,-591.57,0.00058356,120]
[320803535,1711561941827,-540.2,0.00058356,120]
[320803536,1711561941844,-500.0,0.00058356,120]
[320803537,1711561941864,-826.04,0.00058356,120]
[320803538,1711561941889,-802.7,0.00058356,120]
[320803539,1711561941908,-551.8,0.00058356,120]
[320803540,1711561941928,-792.47,0.00058356,120]
[320803541,1711561941947,-273.68694511,0.00058356,120]
[320803542,1711561941967,-507.03,0.00058356,120]
[320803543,1711561941986,-814.62,0.00058356,120]
[320803544,1711561941999,-519.12,0.00058356,120]
[320803545,1711561942017,-500.0,0.00058356,120]
[320803546,1711561942033,-553.94,0.00058356,120]
[320803547,1711561942049,-1363.26,0.00058356,120]
[320803548,1711561942066,-681.15,0.00058356,120]
[320803549,1711561942082,-1247.0,0.00058356,120]
[320803550,1711561942098,-828.0,0.00058356,120]
[320803551,1711561942116,-691.03,0.00058356,120]
[320803552,1711561942132,-907.95,0.00058356,120]
[320803553,1711561942148,-1943.45,0.00058356,120]
[320803554,1711561942164,-1363.72,0.00058356,120]
[320803555,1711561942179,-500.0,0.00058356,120]
[320803556,1711561942196,-1264.66,0.00058356,120]
[320803557,1711561942211,-518.11,0.00058356,120]
[320803558,1711561942226,-500.0,0.00058356,120]
[320803559,1711561942243,-785.6,0.00058356,120]
[320803560,1711561942259,-500.0,0.00058356,120]
[320803561,1711561942275,-500.0,0.00058356,120]
[320803562,1711561942291,-533.96,0.00058356,120]
[320803563,1711561942307,-610.76,0.00058356,120]
[320803564,1711561942323,-500.0,0.00058356,120]
[320803565,1711561942338,-601.27,0.00058356,120]
[320803566,1711561942353,-619.35,0.00058356,120]
[320803567,1711561942369,-723.32,0.00058356,120]
[320803568,1711561942385,-658.94,0.00058356,30]
[320803569,1711561942400,-604.53,0.00058356,120]
[320803570,1711561942415,-500.0,0.00058356,120]
[320803571,1711561942430,-627.6,0.00058356,120]
[320803572,1711561942446,-541.49,0.00058356,120]
[320803573,1711561942461,-525.41,0.00058356,120]
[320803574,1711561942476,-1259.13,0.00058356,120]
[320803575,1711561942492,-500.0,0.00058356,120]
[320803576,1711561942507,-1285.86,0.00058356,120]
[320803577,1711561942522,-961.87,0.00058356,120]
[320803578,1711561942539,-1118.41,0.00058356,120]
[320803579,1711561942554,-423.59559016,0.00058356,120]
[320803580,1711561942569,-653.33,0.00058356,120]
[320803581,1711561942583,-500.0,0.00058356,120]
[320803582,1711561942599,-515.61,0.00058356,120]
[320803583,1711561942613,-881.34,0.00058356,120]
[320803584,1711561942628,-594.96,0.00058356,120]
[320803585,1711561942645,-635.55,0.00058356,120]
[320803586,1711561942662,-500.0,0.00058356,120]
[320803587,1711561942677,-569.07,0.00058356,120]
[320803588,1711561942691,-513.81,0.00058356,120]
[320803589,1711561942706,-885.2,0.00058356,120]
[320803590,1711561942721,-507.05,0.00058356,120]
[320803591,1711561942737,-345.9,0.00058356,120]
[320803592,1711561942752,-500.0,0.00058356,120]
[320803593,1711561942767,-969.37,0.00058356,120]
[320803594,1711561942783,-293.42795734,0.00058356,120]
[320803595,1711561942797,-500.0,0.00058356,120]
[320803596,1711561942812,-712.96,0.00058356,120]
[320803597,1711561942827,-607.67,0.00058356,120]
[320803598,1711561942843,-500.0,0.00058356,120]
[320803599,1711561942857,-500.0,0.00058356,120]
[320803600,1711561942874,-572.09,0.00058356,120]
[320803601,1711561942893,-633.56,0.00058356,120]
[320803602,1711561942907,-1276.08,0.00058356,120]
[320803603,1711561942922,-743.04,0.00058356,120]
[320803604,1711561942937,-994.38,0.00058356,120]
[320803605,1711561942953,-1464.37,0.00058356,120]
[320803606,1711561942968,-1308.17,0.00058356,120]
[320803607,1711561942983,-1966.83,0.00058356,120]
[320803608,1711561942998,-882.23,0.00058356,120]
[320803609,1711561943013,-1167.58,0.00058356,120]
[320803610,1711561943027,-500.0,0.00058356,120]
[320803611,1711561943041,-939.99,0.00058356,120]
[320803612,1711561943056,-1680.42,0.00058356,120]
[320803613,1711561943070,-654.45,0.00058356,120]
[320803614,1711561943085,-1090.78,0.00058356,120]
[320803615,1711561943100,-5693.99,0.00058356,120]
[320803616,1711561943115,-2767.8,0.00058356,120]
[320803617,1711561943130,-631.11,0.00058356,120]
[320803618,1711561943148,-638.94,0.00058356,120]
[320803619,1711561943163,-1880.06,0.00058356,120]
[320803620,1711561943177,-3576.66,0.00058356,120]
[320803621,1711561943192,-1154.81,0.00058356,120]
[320803622,1711561943207,-597.69,0.00058356,120]
[320803623,1711561943221,-11680.99,0.00058356,120]
[320803624,1711561943236,-500.0,0.00058356,120]
[320803625,1711561943250,-500.0,0.00058356,120]
[320803626,1711561943265,-1513.917961,0.00058356,120]
[320803627,1711561943278,-500.0,0.00058356,120]
[320803628,1711561943293,-4891.01,0.00058356,120]
[320803629,1711561943307,-820.32,0.00058356,120]
[320803630,1711561943322,-2266.19,0.00058356,120]
[320803631,1711561943336,-4319.88,0.00058356,120]
[320803632,1711561943350,-638.01,0.00058356,120]
[320803633,1711561943364,-1948.43,0.00058356,120]
[320803634,1711561943379,-594.89,0.00058356,120]
[320803635,1711561943396,-58191.63,0.00058356,120]
[320803636,1711561943411,-500.0,0.00058356,120]
[320803637,1711561943426,-4872.06,0.00058356,120]
[320803638,1711561943440,-25819.15,0.00058356,120]
[320803639,1711561943454,-916.42,0.00058356,120]
[320803640,1711561943468,-672.12,0.00058356,120]
[320803641,1711561943486,-500.0,0.00058356,120]
[320803642,1711561943500,-2822.64,0.00058356,120]
[320803643,1711561943515,-5739.01,0.00058356,120]
[320803644,1711561943531,-1599.36,0.00058356,120]
[320803645,1711561943547,-1773.91,0.00058356,120]
[320803646,1711561943561,-7896.21,0.00058356,120]
[320803647,1711561943576,-580.5,0.00058356,120]
[320803648,1711561943805,-500.0,0.00058356,120]
[320803649,1711561943822,-702.31,0.00058356,120]
[320803650,1711561943832,-4077.6,0.00058356,120]
[320803651,1711561943842,-962.02,0.00058356,120]
[320803652,1711561943851,-1910.86,0.00058356,120]
[320803653,1711561943860,-1981.61,0.00058356,120]
[320803654,1711561943870,-993.68,0.00058356,120]
[320803655,1711561943880,-1310.9,0.00058356,120]
[320803656,1711561943894,-5861.79,0.00058356,120]
[320803657,1711561943902,-861.74,0.00058356,120]
[320803658,1711561943911,-3868.28,0.00058356,120]
[320803659,1711561943921,-4602.46,0.00058356,120]
[320803660,1711561943931,-2663.41,0.00058356,120]
[320803661,1711561943942,-2285.5,0.00058356,120]
[320803662,1711561943951,-7201.79,0.00058356,120]
[320803663,1711561943961,-1041.92,0.00058356,120]
[320803664,1711561943971,-500.0,0.00058356,120]
[320803665,1711561943981,-2054.16,0.00058356,120]
[320803666,1711561943991,-18909.02,0.00058356,120]
[320803667,1711561944002,-1431.94,0.00058356,120]
[320803668,1711561944011,-1528.43,0.00058356,120]
[320803669,1711561944021,-543.42,0.00058356,120]
[320803670,1711561944030,-1715.09,0.00058356,120]
[320803671,1711561944040,-836.18,0.00058356,120]
[320803672,1711561944049,-2529.3,0.00058356,120]
[320803673,1711561944058,-1204.05,0.00058356,120]
[320803674,1711561944068,-882.15,0.00058356,120]
[320803675,1711561944077,-500.0,0.00058356,120]
[320803676,1711561944087,-1890.07,0.00058356,120]
[320803677,1711561944097,-1395.77,0.00058356,120]
[320803678,1711561944106,-555.74165251,0.00058356,120]
[320803679,1711561944116,-22066.4,0.00058356,120]
[320803680,1711561944125,-9133.29,0.00058356,120]
[320803681,1711561944135,-3276.54,0.00058356,120]
[320803682,1711561944145,-3779.21,0.00058356,120]
[320803683,1711561944155,-505.39,0.00058356,120]
[320803684,1711561944164,-1407.53,0.00058356,120]
[320803685,1711561944174,-1780.21,0.00058356,120]
[320803686,1711561944184,-744.71,0.00058356,120]
[320803687,1711561944193,-3375.62,0.00058356,120]
[320803688,1711561944203,-500.0,0.00058356,120]
[320803689,1711561944213,-1245.33,0.00058356,120]
[320803690,1711561944222,-825.22,0.00058356,120]
[320803691,1711561944231,-2499.0,0.00058356,120]
[320803692,1711561944243,-1139.82,0.00058356,120]
[320803693,1711561944253,-3390.46,0.00058356,120]
[320803694,1711561944265,-2297.82,0.00058356,120]
[320803695,1711561944274,-36215.98,0.00058356,120]
[320803696,1711561944284,-2115.9,0.00058356,120]
[320803697,1711561944293,-500.0,0.00058356,120]
[320803698,1711561944302,-504.0,0.00058356,120]
[320803699,1711561944312,-635.43,0.00058356,120]
[320803700,1711561944321,-509.72,0.00058356,7]
[320803701,1711561944331,-1985.21,0.00058356,120]
[320803702,1711561944340,-4093.44,0.00058356,120]
[320803703,1711561944350,-598.33,0.00058356,120]
[320803704,1711561944359,-3703.02,0.00058356,120]
[320803705,1711561944369,-3170.6,0.00058356,120]
[320803706,1711561944378,-4518.78,0.00058356,120]
[320803707,1711561944389,-816.34,0.00058356,120]
[320803708,1711561944398,-550.58,0.00058356,120]
[320803709,1711561944407,-5597.96,0.00058356,120]
[320803710,1711561944415,-3365.42,0.00058356,120]
[320803711,1711561944425,-1850.45,0.00058356,120]
[320803712,1711561944434,-1437.25,0.00058356,120]
[320803713,1711561944443,-543.16,0.00058356,120]
[320803714,1711561944453,-500.0,0.00058356,120]
[320803715,1711561944463,-13261.96,0.00058356,120]
[320803716,1711561944472,-688.55,0.00058356,120]
[320803717,1711561944481,-2460.7,0.00058356,120]
[320803718,1711561944491,-1308.22,0.00058356,120]
[320803719,1711561944503,-1655.41,0.00058356,120]
[320803720,1711561944512,-500.0,0.00058356,120]
[320803721,1711561944522,-606.26,0.00058356,120]
[320803722,1711561944531,-3292.56,0.00058356,120]
[320803723,1711561944541,-2911.12,0.00058356,120]
[320803724,1711561944551,-4771.81,0.00058356,120]
[320803725,1711561944560,-1591.58,0.00058356,120]
[320803726,1711561944570,-8314.67,0.00058356,21]
[320803727,1711561944579,-515.6,0.00058356,120]
[320803728,1711561944588,-1246.89,0.00058356,120]
[320803729,1711561944597,-1689.16,0.00058356,120]
[320803730,1711561944607,-500.0,0.00058356,120]
[320803731,1711561944616,-770.25,0.00058356,120]
[320803732,1711561944626,-8380.88,0.00058356,120]
[320803733,1711561944636,-614.46,0.00058356,120]
[320803734,1711561944645,-2989.36,0.00058356,120]
[320803735,1711561944655,-10959.62,0.00058356,120]
[320803736,1711561944664,-521.47,0.00058356,120]
[320803737,1711561944674,-2645.1,0.00058356,120]
[320803738,1711561944684,-758.38,0.00058356,120]
[320803739,1711561944694,-12744.26,0.00058356,120]
[320803740,1711561944703,-500.0,0.00058356,120]
[320803741,1711561944713,-11517.5,0.00058356,120]
[320803742,1711561944722,-2628.59,0.00058356,120]
[320803743,1711561944731,-1981.45,0.00058356,120]
[320803744,1711561944741,-500.0,0.00058356,120]
[320803745,1711561944751,-574.06162887,0.00058356,120]
[320803746,1711561944760,-2618.9,0.00058356,120]
[320803747,1711561944769,-2635.65,0.00058356,120]
[320803748,1711561944778,-2440.72,0.00058356,120]
[320803749,1711561944788,-1641.2,0.00058356,120]
[320803750,1711561944798,-1422.66,0.00058356,120]
[320803751,1711561944807,-1953.26,0.00058356,120]
[320803752,1711561944817,-680.59,0.00058356,120]
[320803753,1711561944826,-851.11,0.00058356,120]
[320803754,1711561944837,-516.23,0.00058356,120]
[320803755,1711561944852,-4524.02,0.00058356,120]
[320803756,1711561944863,-833.36,0.00058356,120]
[320803757,1711561944876,-500.0,0.00058356,120]
[320803758,1711561944886,-2147.51,0.00058356,120]
[320803759,1711561944896,-1200.4,0.00058356,120]
[320803760,1711561944906,-6977.94,0.00058356,120]
[320803761,1711561944916,-4994.03,0.00058356,120]
[320803762,1711561944925,-1826.97,0.00058356,120]
[320803763,1711561944935,-1042.58,0.00058356,120]
[320803764,1711561944945,-818.62,0.00058356,120]
[320803765,1711561944955,-1312.03,0.00058356,120]
[320803766,1711561944965,-1814.79,0.00058356,120]
[320803767,1711561944975,-1730.09,0.00058356,120]
[320803768,1711561944985,-3092.64,0.00058356,120]
[320803769,1711561944996,-858.06,0.00058356,120]
[320803770,1711561945007,-500.0,0.00058356,120]
[320803771,1711561945016,-3331.35,0.00058356,120]
[320803772,1711561945026,-1107.56,0.00058356,120]
[320803773,1711561945035,-1629.06,0.00058356,120]
[320803774,1711561945045,-1926.96,0.00058356,120]
[320803775,1711561945055,-5998.21,0.00058356,120]
[320803776,1711561945064,-1276.61,0.00058356,120]
[320803777,1711561945073,-978.47,0.00058356,120]
[320803778,1711561945082,-1204.74,0.00058356,120]
[320803779,1711561945091,-500.0,0.00058356,120]
[320803780,1711561945100,-1112.11,0.00058356,120]
[320803781,1711561945109,-500.0,0.00058356,120]
[320803782,1711561945118,-5147.59,0.00058356,120]
[320803783,1711561945128,-1278.89,0.00058356,120]
[320803784,1711561945137,-1257.45,0.00058356,120]
[320803785,1711561945147,-200.0,0.0005837,30]
[320803786,1711561945156,-208.0,0.0005837,30]
[320803787,1711561945166,-208.0,0.0005837,30]
[320803788,1711561945176,-150.50617537,0.00058421,120]
[320803789,1711561945186,-500.0,0.00058439,4]
[320803790,1711561945195,-500.0,0.00058439,4]
[320803791,1711561945204,-500.0,0.00058439,4]
[320803792,1711561945213,-500.0,0.00058439,4]
[320803793,1711561945222,-500.0,0.00058439,4]
[320803794,1711561945231,-500.0,0.00058439,4]
[320803795,1711561945241,-500.0,0.00058439,4]
[320803796,1711561945250,-500.0,0.00058439,4]
[320803797,1711561945259,-500.0,0.00058439,4]
[320803798,1711561945268,-500.0,0.00058439,4]
[320803799,1711561945277,-500.0,0.00058439,4]
[320803800,1711561945287,-500.0,0.00058439,4]
[320803801,1711561945296,-500.0,0.00058439,4]
[320803802,1711561945306,-500.0,0.00058439,4]
[320803803,1711561945315,-500.0,0.00058439,4]
[320803804,1711561945325,-500.0,0.00058439,4]
[320803805,1711561945335,-500.0,0.00058439,4]
[320803806,1711561945344,-500.0,0.00058439,4]